bitfinex-derivatives/quotes_ETHF0:USTF0_20241023
["timestamp","ask_amount","ask_price","bid_price","bid_amount"]
[1729700180638,1.12192,2534.1,2533.6,0.39499]
[1729700180834,0.727,2534.1,2534.0,0.39492]
[1729700181432,1.12191,2534.1,2534.0,0.39492]
[1729700181634,0.727,2534.1,2534.0,0.39492]
[1729700182839,3.9301,2534.3,2533.6,0.4634]
[1729700183041,4.32498,2534.3,2534.2,0.39489]
[1729700183435,1.11718,2534.3,2534.2,0.39489]
[1729700183636,1.11718,2534.3,2533.5,3.08]
[1729700183637,7.94207082,2534.3,2533.3,47.0878]
[1729700183944,0.39495,2533.9,2533.8,0.39495]
[1729700184432,1.13315,2533.9,2533.8,0.39495]
[1729700184628,12.1127787,2533.9,2533.3,44.0078]
[1729700184837,0.39499,2533.6,2533.5,0.39499]
[1729700185337,0.7405,2533.7,2533.6,0.39498]
[1729700185731,5.0886787,2533.7,2533.6,0.39498]
[1729700185933,0.7405,2533.7,2533.6,0.39498]
[1729700191039,0.7405,2533.7,2533.6,0.39499]
[1729700191446,0.7382,2533.9,2533.6,0.39499]
[1729700191743,0.759,2534.1,2534.0,0.39492]
[1729700192441,3.2078,2534.6,2534.5,0.39485]
[1729700192736,7.43786801,2534.6,2534.5,0.39485]
[1729700193441,8.20116801,2534.6,2534.5,0.39485]
[1729700193637,3.9711,2534.6,2534.5,0.39485]
[1729700194843,3.2078,2534.9,2534.5,41.19485]
[1729700195134,0.7633,2534.9,2534.5,40.8]
[1729700195334,1.15809,2534.9,2534.8,0.3948]
[1729700195538,0.39481,2534.8,2534.7,0.39481]
[1729700195842,1.1581,2534.9,2534.7,0.39481]
[1729700196145,0.7633,2534.9,2534.7,0.39481]
[1729700196348,0.3948,2534.8,2534.7,0.39481]
[1729700196837,1.15809,2534.9,2534.8,0.3948]
[1729700197540,0.39481,2534.8,2534.5,40.8]
[1729700197749,0.39481,2534.8,2534.6,0.39482]
[1729700197946,0.39482,2534.7,2534.5,40.8]
[1729700198249,0.39482,2534.7,2534.6,0.39483]
[1729700198446,0.7633,2534.9,2534.3,0.98719]
[1729700198647,0.7633,2534.9,2534.8,0.3948]
[1729700199643,3.9271,2535.0,2534.6,4.06708]
[1729700199852,3.9271,2535.0,2534.9,0.39478]
[1729700200545,0.7314,2535.2,2534.7,0.7294]
[1729700200745,0.7314,2535.2,2535.1,0.39475]
[1729700201548,1.12614,2535.2,2535.1,0.39475]
[1729700201749,0.7176,2535.4,2535.3,0.39472]
[1729700201952,3.2078,2535.5,2535.4,0.39471]
[1729700202259,3.2078,2535.5,2535.4,3.47471]
[1729700202454,3.2078,2535.5,2535.4,8.71311]
[1729700202758,1.4797,2535.8,2535.7,0.39466]
[1729700203850,1.4797,2535.8,2535.3,3.08]
[1729700204052,0.3947,2535.5,2535.3,0.39471]
[1729700204258,0.39473,2535.3,2535.2,0.39474]
[1729700204651,0.39473,2535.3,2534.9,42.0944]
[1729700204652,0.7578,2535.4,2534.9,1.2944]
[1729700205163,0.39472,2535.3,2534.9,1.2944]
[1729700205463,0.7578,2535.4,2535.2,0.39473]
[1729700205663,0.39472,2535.3,2535.2,0.39473]
[1729700206167,3.60252,2535.3,2535.2,0.39473]
[1729700206367,3.2078,2535.3,2535.2,0.39473]
[1729700206560,1.15251,2535.4,2535.3,0.39472]
[1729700206871,3.2078,2535.7,2535.3,3.08]
[1729700207063,3.2078,2535.7,2535.6,0.39468]
[1729700207269,1.4928,2535.8,2535.7,0.39466]
[1729700207463,4.77139951,2535.7,2535.5,0.39468]
[1729700207763,0.39468,2535.6,2535.4,0.3947]
[1729700207966,0.39468,2535.6,2535.5,0.39469]
[1729700208262,4.43267708,2535.6,2535.5,0.39469]
[1729700208459,1.17457,2535.7,2535.5,0.39469]
[1729700208656,4.38237,2535.7,2535.5,0.39469]
[1729700208859,3.9877,2535.7,2535.2,0.98684]
[1729700209171,3.9877,2535.7,2535.4,0.39469]
[1729700209172,0.39469,2535.5,2535.4,0.39469]
[1729700209356,3.9877,2535.7,2535.1,3.08]
[1729700209565,0.39474,2535.2,2535.1,0.39474]
[1729700209868,7.5292123,2535.5,2535.0,0.39476]
[1729700209869,0.39476,2535.1,2535.0,0.39476]
[1729700210063,1.13376,2535.1,2535.0,0.39476]
[1729700210264,0.739,2535.1,2535.0,0.39476]
[1729700210461,0.7799,2535.2,2535.1,0.39475]
[1729700210664,0.7799,2535.2,2535.1,3.47475]
[1729700211063,1.97109,2535.6,2535.1,3.08]
[1729700211271,0.7933,2535.6,2535.5,0.39469]
[1729700211465,0.7933,2535.6,2535.5,3.47469]
[1729700212169,0.7933,2535.6,2535.5,0.39469]
[1729700215975,0.39477,2535.0,2534.9,3.60258]
[1729700216268,0.98701,2534.8,2533.9,0.98732]
[1729700216470,11.12085526,2535.0,2533.7,0.7645]
[1729700216471,3.08,2534.2,2533.7,0.7645]
[1729700216673,0.39492,2534.0,2533.9,0.39494]
[1729700216971,0.39492,2534.0,2533.9,0.39493]
[1729700217171,0.39491,2534.1,2534.0,0.39492]
[1729700217473,0.39492,2534.1,2534.0,0.39492]
[1729700218374,0.39492,2534.1,2533.7,41.5645]
[1729700218375,1.1491,2534.2,2534.1,0.39491]
[1729700218562,0.7542,2534.2,2533.7,41.5645]
[1729700218765,1.1491,2534.2,2533.7,41.5645]
[1729700219375,1.1491,2534.2,2534.0,0.39491]
[1729700219777,0.39491,2534.1,2534.0,0.39491]
[1729700220272,0.7542,2534.2,2533.7,41.5645]
[1729700220469,0.7542,2534.2,2534.1,0.39491]
[1729700220668,1.14909,2534.2,2534.1,0.39491]
[1729700221268,0.7542,2534.2,2534.1,0.39491]
[1729700222064,0.7542,2534.2,2533.7,40.8]
[1729700222270,9.18213063,2534.2,2533.7,40.8]
[1729700222467,8.43523063,2534.2,2534.1,0.39491]
[1729700222666,3.962,2534.2,2534.1,0.39491]
[1729700223076,4.35689,2534.2,2534.1,0.39491]
[1729700223273,4.35689,2534.2,2534.0,0.39491]
[1729700223478,3.962,2534.2,2533.7,44.59]
[1729700223776,0.39492,2534.1,2533.9,0.39493]
[1729700224580,4.3569,2534.2,2534.0,0.39492]
[1729700224879,0.39491,2534.1,2533.9,0.39493]
[1729700225175,4.3569,2534.2,2534.0,0.39492]
[1729700225373,4.3569,2534.2,2533.7,44.59]
[1729700225374,3.962,2534.2,2534.1,0.39491]
[1729700225564,3.2078,2534.2,2534.1,0.39491]
[1729700225765,3.2078,2534.6,2534.5,0.39485]
[1729700226169,2.58141,2534.8,2534.6,0.39483]
[1729700226375,1.4397,2534.8,2534.7,0.39482]
[1729700226768,9.1745,2534.8,2533.3,3.2078]
[1729700226969,0.39506,2533.2,2533.0,3.2078]
[1729700227167,3.2078,2533.6,2532.5,1.2612]
[1729700227373,2.66398176,2533.5,2533.1,0.39506]
[1729700227570,6.54338466,2533.5,2533.1,0.39506]
[1729700227776,6.54338466,2533.5,2532.9,3.79]
[1729700227777,0.06637176,2533.4,2532.9,3.79]
[1729700227969,0.06637176,2533.4,2532.6,3.79]
[1729700227970,0.06638539,2533.4,2532.6,3.79]
[1729700228170,0.39503,2533.4,2532.7,3.2078]
[1729700228375,9.6848129,2533.5,2532.9,3.79]
[1729700228677,10.0798229,2533.5,2533.1,0.39506]
[1729700229173,10.0798229,2533.5,2532.9,3.79]
[1729700229174,9.6848129,2533.5,2533.2,0.39504]
[1729700229374,8.9155129,2533.5,2533.0,0.39508]
[1729700229570,8.9155129,2533.5,2533.3,0.39503]
[1729700230173,5.7077129,2533.5,2533.3,0.39503]
[1729700230373,1.4333,2533.5,2533.3,0.39503]
[1729700230571,1.4333,2533.5,2533.0,3.2078]
[1729700230774,3.2078,2533.8,2533.7,0.39497]
[1729700231076,3.79,2534.6,2533.7,3.79]
[1729700231077,0.77,2534.2,2533.7,3.79]
[1729700231275,3.2078,2534.6,2533.9,0.39494]
[1729700231276,0.39488,2534.3,2533.9,0.39494]
[1729700231468,0.39488,2534.3,2534.0,0.39492]
[1729700231666,0.39488,2534.3,2534.1,40.8]
[1729700231874,0.39489,2534.2,2534.1,40.8]
[1729700232071,5.43170909,2534.2,2534.1,40.8]
[1729700232669,9.37810909,2534.2,2534.1,40.8]
[1729700232973,0.39498,2533.7,2533.4,0.39501]
[1729700233279,0.39498,2533.7,2533.1,3.2078]
[1729700233280,0.39504,2533.3,2533.1,3.2078]
[1729700233477,0.39505,2533.2,2533.1,3.2078]
[1729700233872,0.39505,2533.2,2533.1,44.0078]
[1729700234072,0.39502,2533.4,2533.1,44.40286]
[1729700234675,0.39501,2533.5,2533.1,44.0078]
[1729700234882,6.63946501,2533.6,2533.1,44.0078]
[1729700235078,6.63946501,2533.6,2533.5,0.395]
[1729700235079,5.86726501,2533.6,2533.5,0.395]
[1729700235282,5.86726501,2533.6,2533.1,40.8]
[1729700235485,5.86726501,2533.6,2533.4,0.39501]
[1729700235783,5.86726501,2533.6,2533.5,0.395]
[1729700236984,0.7915,2533.6,2533.5,0.395]
[1729700237776,4.6876,2534.0,2533.3,5.51056]
[1729700237978,3.2078,2534.0,2533.9,0.39494]
[1729700238173,0.7768,2534.2,2534.1,0.39491]
[1729700238375,1.4975,2534.5,2533.8,4.19518]
[1729700238585,0.719,2534.5,2534.4,0.39486]
[1729700239077,3.2078,2534.6,2534.4,0.39486]
[1729700239078,3.2078,2534.6,2534.5,0.39485]
[1729700239286,4.5685,2535.4,2534.6,0.98707]
[1729700239287,4.7036,2535.2,2534.6,0.98707]
[1729700239584,3.2078,2534.9,2534.5,40.8]
[1729700239881,4.53004606,2534.8,2534.5,40.8]
[1729700240083,4.53003606,2534.8,2534.6,0.39483]
[1729700240390,0.39482,2534.7,2534.5,40.8]
[1729700240581,3.2078,2534.9,2534.5,40.8]
[1729700240582,3.2078,2534.9,2534.7,0.39481]
[1729700240881,3.2078,2534.9,2534.6,0.39483]
[1729700240882,0.39481,2534.8,2534.6,0.39483]
[1729700241479,3.2078,2534.9,2534.6,0.39483]
[1729700241685,0.39482,2534.7,2534.6,0.39483]
[1729700242282,0.39481,2534.8,2534.7,0.3948]
[1729700242483,3.6026,2534.9,2534.8,0.3948]
[1729700242677,0.39481,2534.8,2534.7,0.39481]
[1729700242884,3.2078,2534.9,2534.5,40.8]
[1729700243078,3.2078,2534.9,2534.6,0.39482]
[1729700243079,0.39482,2534.7,2534.6,0.39482]
[1729700243487,3.2078,2534.9,2534.5,40.8]
[1729700243779,0.3948,2534.8,2534.7,0.3948]
[1729700243986,3.2078,2534.9,2534.8,0.3948]
[1729700243987,3.60259,2534.9,2534.8,0.3948]
[1729700244177,1.4958,2535.2,2535.0,0.39476]
[1729700244382,1.4958,2535.2,2534.5,41.7871]
[1729700244383,1.89054,2535.2,2535.1,0.39475]
[1729700244577,1.4958,2535.2,2535.1,0.39475]
[1729700245383,1.89054,2535.2,2535.1,0.39475]
[1729700245587,1.4958,2535.2,2535.1,0.39475]
[1729700246888,3.2078,2535.3,2534.8,0.98699]
[1729700247186,3.60248,2535.6,2535.1,1.38164]
[1729700247375,3.60248,2535.6,2535.4,0.3947]
[1729700247576,4.80954626,2535.5,2535.4,0.3947]
[1729700247877,4.41485626,2535.5,2535.4,0.3947]
[1729700248285,3.2078,2535.6,2534.9,5.25483]
[1729700248490,0.3947,2535.5,2535.3,0.39471]
[1729700248687,3.2078,2535.6,2534.9,5.25483]
[1729700248985,3.2078,2535.6,2535.1,0.98689]
[1729700249291,6.9978,2535.6,2534.9,1.46483]
[1729700249489,6.9978,2535.6,2534.4,0.28169793]
[1729700249490,6.9978,2535.3,2534.5,41.78709]
[1729700249677,0.39476,2535.1,2534.6,0.98708]
[1729700249993,4.67163829,2535.2,2535.1,0.39475]
[1729700250580,4.27689829,2535.2,2535.1,0.39475]
[1729700250982,0.39474,2535.2,2534.7,4.19485]
[1729700251187,0.39475,2535.2,2534.7,0.98705]
[1729700251389,0.7089,2535.1,2534.9,0.39478]
[1729700251687,0.7089,2535.1,2534.6,0.39482]
[1729700251688,0.39478,2534.9,2534.6,0.39482]
[1729700251892,0.39478,2534.9,2534.2,4.19502]
[1729700251893,0.39481,2534.8,2534.3,0.9872]
[1729700252089,4.1803138,2534.8,2534.7,0.39482]
[1729700252288,0.39479,2534.9,2534.7,0.39482]
[1729700252289,4.1803138,2534.9,2534.7,0.39482]
[1729700252480,0.39481,2534.8,2534.3,0.9872]
[1729700252684,0.39481,2534.8,2534.7,0.39482]
[1729700254086,4.1803138,2534.9,2534.7,0.39481]
[1729700254286,3.79,2534.8,2534.6,0.39483]
[1729700254486,0.39487,2534.4,2534.2,40.8]
[1729700254688,4.77708,2534.6,2534.2,40.8]
[1729700254882,5.22497735,2534.3,2533.7,3.9382]
[1729700255089,0.7573,2534.3,2534.2,0.39489]
[1729700255889,1.15218,2534.3,2534.2,0.39489]
[1729700256082,0.7573,2534.3,2534.2,0.39489]
[1729700257087,0.7738,2534.6,2534.5,0.39485]
[1729700257284,3.9773,2534.7,2534.6,0.39483]
[1729700257681,4.37212,2534.7,2534.2,0.98723]
[1729700257994,4.37212,2534.7,2534.0,41.19491]
[1729700257995,3.2078,2534.4,2534.0,41.19491]
[1729700258197,1.4824,2534.3,2534.2,0.39489]
[1729700258391,5.67364245,2534.3,2534.2,0.39489]
[1729700258588,1.87728,2534.3,2534.2,0.39489]
[1729700258904,0.7324,2534.3,2534.2,0.39489]
[1729700260292,11.6758,2534.3,2533.3,3.2078]
[1729700260494,0.39496,2533.8,2533.1,0.98766]
[1729700260699,0.39496,2533.8,2533.7,0.39497]
[1729700260896,0.39496,2533.8,2533.7,40.8]
[1729700261498,0.39498,2533.7,2533.6,0.39499]
[1729700261699,3.2078,2533.7,2533.6,0.39499]
[1729700261894,3.60277,2533.7,2533.6,40.8]
[1729700262089,0.395,2533.5,2533.4,0.39501]
[1729700262293,0.395,2533.5,2533.3,0.39502]
[1729700262492,0.395,2533.5,2533.3,41.19502]
[1729700262789,0.39501,2533.5,2533.3,40.8]
[1729700262994,0.39501,2533.5,2533.4,0.39501]
[1729700263191,0.39502,2533.4,2533.3,41.19503]
[1729700263589,0.39502,2533.4,2533.3,40.8]
[1729700263992,3.60282,2533.4,2533.3,40.8]
[1729700264600,0.39506,2533.1,2533.0,0.39507]
[1729700264996,0.39506,2533.1,2533.0,41.19507]
[1729700265195,0.39506,2533.1,2533.0,41.19508]
[1729700265587,0.39506,2533.1,2533.0,40.8]
[1729700266603,4.34306,2533.1,2533.0,40.8]
[1729700266787,12.09364608,2533.1,2533.0,40.8]
[1729700266986,0.39513,2532.7,2532.6,0.39514]
[1729700267189,3.60292,2532.8,2532.7,0.39513]
[1729700267391,3.2078,2532.8,2532.7,41.19513]
[1729700267592,0.39509,2533.0,2532.7,44.748]
[1729700267793,3.2078,2533.1,2532.7,40.8]
[1729700268005,3.60287,2533.1,2533.0,0.39508]
[1729700268692,3.2078,2533.1,2533.0,0.39508]
[1729700269087,3.60286,2533.2,2533.0,0.39508]
[1729700269301,3.2078,2533.2,2533.0,0.39508]
[1729700269502,3.60286,2533.2,2533.0,0.39508]
[1729700269794,3.60286,2533.2,2532.7,40.8]
[1729700269795,0.39506,2533.2,2532.7,40.8]
[1729700270005,0.39506,2533.2,2533.0,0.39507]
[1729700271290,0.39506,2533.2,2532.5,0.39515]
[1729700271291,0.39514,2532.7,2532.5,0.39515]
[1729700271496,0.39515,2532.6,2532.1,4.19584]
[1729700271697,3.2078,2532.9,2532.8,0.39511]
[1729700271893,7.6036764,2532.9,2532.8,0.39511]
[1729700272092,3.2078,2532.9,2532.8,0.39511]
[1729700272700,3.60291,2532.9,2532.8,0.39511]
[1729700273095,3.2078,2532.9,2532.8,0.39511]
[1729700273804,3.6029,2532.9,2532.8,0.39511]
[1729700274197,3.2078,2532.9,2532.8,0.39511]
[1729700274799,0.39508,2533.1,2532.9,0.39508]
[1729700274999,0.39508,2533.1,2533.0,0.39508]
[1729700275406,4.6851,2533.3,2532.6,1.71076]
[1729700275704,0.06631755,2533.2,2532.6,1.71076]
[1729700275899,4.6851,2533.3,2533.2,0.39505]
[1729700276098,4.6851,2533.3,2532.8,4.19558]
[1729700276293,5.08014,2533.3,2533.2,0.39505]
[1729700276700,4.6851,2533.3,2533.2,0.39505]
[1729700277704,3.2078,2533.3,2533.2,4.34225]
[1729700277897,3.2078,2533.6,2533.3,0.39503]
[1729700278103,3.2078,2533.6,2533.5,0.395]
[1729700278302,1.5076,2533.8,2533.7,0.39497]
[1729700278508,1.5076,2533.8,2533.7,41.19497]
[1729700278705,3.2078,2534.0,2533.7,40.8]
[1729700279004,3.2078,2534.0,2533.9,0.39494]
[1729700279204,1.5076,2534.1,2534.0,0.39492]
[1729700279399,1.5076,2534.1,2533.7,40.8]
[1729700279601,3.2078,2534.0,2533.8,0.39496]
[1729700279793,3.2078,2534.0,2533.7,40.8]
[1729700279794,3.2078,2534.0,2533.7,41.19497]
[1729700279997,0.39496,2533.8,2533.7,40.8]
[1729700280198,4.25433316,2533.9,2533.2,3.21381]
[1729700280400,0.39498,2533.7,2533.6,0.39498]
[1729700280604,0.39499,2533.6,2533.5,0.395]
[1729700280804,0.39501,2533.5,2533.4,0.39501]
[1729700281011,1.15091,2533.5,2533.4,0.39501]
[1729700281214,0.7559,2533.5,2533.4,41.19501]
[1729700281711,1.1509,2533.5,2533.4,41.19501]
[1729700282309,0.7559,2533.5,2533.4,41.19501]
[1729700282609,3.2078,2533.7,2533.6,0.39499]
[1729700283299,3.60277,2533.7,2533.6,0.39499]
[1729700284101,3.2078,2533.7,2533.6,0.39499]
[1729700284701,0.39493,2534.0,2533.9,0.39494]
[1729700284702,3.2078,2534.0,2533.9,0.39494]
[1729700285107,3.2078,2534.3,2533.9,4.34134]
[1729700285309,4.7243,2534.6,2534.5,0.39485]
[1729700285614,1.5165,2534.6,2534.5,0.39485]
[1729700285811,6.9978,2535.0,2534.4,0.98713]
[1729700285812,3.2078,2535.0,2534.4,0.98713]
[1729700286010,0.39481,2534.8,2534.7,0.39481]
[1729700286310,3.9567,2535.0,2534.3,4.19499]
[1729700286511,0.39478,2534.9,2534.7,0.3948]
[1729700286713,0.3948,2534.8,2534.7,0.3948]
[1729700287146,0.3948,2534.8,2534.3,0.98719]
[1729700287147,3.9567,2535.0,2534.3,3.79]
[1729700287303,0.7489,2535.0,2534.9,0.39478]
[1729700287708,0.7489,2535.0,2534.9,41.19478]
[1729700287909,0.7676,2535.1,2535.0,0.39477]
[1729700289727,7.9202,2535.1,2534.3,7.98498]
[1729700290014,8.19237505,2535.1,2534.3,4.19498]
[1729700290217,0.39481,2534.8,2534.7,0.39481]
[1729700290807,9.17927505,2535.1,2534.3,44.99498]
[1729700291017,9.17927505,2535.1,2534.5,0.39484]
[1729700291018,0.39484,2534.6,2534.5,0.39484]
[1729700291607,0.98698,2534.9,2534.2,40.8]
[1729700291915,0.39485,2534.5,2534.4,0.39485]
[1729700292510,0.39484,2534.6,2534.5,0.39484]
[1729700292706,3.2078,2534.8,2534.2,0.98724]
[1729700292912,4.40651474,2534.7,2534.6,0.39482]
[1729700293204,3.9754,2535.1,2534.3,4.7772]
[1729700293405,4.37016,2535.1,2534.6,0.98707]
[1729700293612,4.93242854,2535.0,2534.9,0.39478]
[1729700293910,4.37016,2535.1,2534.6,0.98707]
[1729700294107,3.9754,2535.1,2535.0,0.39477]
[1729700294708,0.7676,2535.1,2535.0,0.39477]
[1729700295112,0.7676,2535.1,2534.7,0.98701]
[1729700295113,3.9634,2535.4,2535.3,0.39472]
[1729700295308,7.9074,2535.4,2535.3,0.39472]
[1729700295510,8.32040962,2535.4,2535.3,0.39472]
[1729700295710,3.9634,2535.4,2535.3,0.39472]
[1729700298715,3.9634,2535.4,2535.0,3.2078]
[1729700299015,0.39474,2535.2,2534.7,7.98482]
[1729700299216,3.9634,2535.4,2534.6,0.98706]
[1729700299522,3.9634,2535.4,2535.1,0.39475]
[1729700299523,0.39475,2535.2,2535.1,0.39475]
[1729700299817,3.9634,2535.4,2534.7,6.9978]
[1729700300014,3.9634,2535.4,2535.3,0.39472]
[1729700300015,4.35812,2535.4,2535.3,0.39472]
[1729700302211,3.9634,2535.4,2535.3,0.39472]
[1729700302721,4.35811,2535.4,2535.3,0.39472]
[1729700302923,3.9634,2535.4,2535.3,0.39472]
[1729700303115,3.2078,2535.4,2535.3,4.33872]
[1729700303318,0.7515,2535.7,2535.3,4.33872]
[1729700303619,0.7515,2535.7,2535.6,0.39468]
[1729700304420,1.14616,2535.7,2535.6,0.39468]
[1729700304723,0.7515,2535.7,2535.6,0.39468]
[1729700305118,3.2078,2535.8,2535.7,0.39466]
[1729700306223,0.39466,2535.7,2535.6,0.39466]
[1729700306434,0.721,2535.7,2535.5,40.8]
[1729700306622,0.721,2535.7,2535.6,0.39468]
[1729700307525,0.7172,2535.9,2535.8,0.39464]
[1729700309927,3.9288,2536.1,2535.5,0.98672]
[1729700310222,0.7837,2536.3,2536.2,0.39458]
[1729700310223,0.7446,2536.3,2536.2,0.39458]
[1729700311326,0.7725,2536.6,2536.2,7.7332]
[1729700311623,3.9537,2536.7,2536.6,0.39452]
[1729700311819,0.39446,2537.0,2536.4,3.79]
[1729700311820,3.2078,2537.0,2536.4,3.79]
[1729700312019,3.2078,2537.0,2536.9,0.39447]
[1729700314025,3.2078,2537.0,2536.8,41.19448]
[1729700314026,3.60227,2537.0,2536.8,41.19448]
[1729700314223,0.39447,2536.9,2536.8,40.8]
[1729700314532,0.39447,2536.9,2536.8,41.19449]
[1729700314730,0.7459,2537.2,2536.8,41.19449]
[1729700315022,0.7459,2537.2,2536.5,3.79]
[1729700315023,4.30547563,2537.1,2536.9,0.39447]
[1729700315228,4.69992563,2537.1,2536.9,0.39447]
[1729700315429,0.39445,2537.1,2536.9,0.39447]
[1729700315627,0.7459,2537.2,2536.8,3.79]
[1729700315823,0.39445,2537.1,2536.9,0.39447]
[1729700316321,0.39445,2537.1,2537.0,0.39446]
[1729700317633,0.7459,2537.2,2537.0,0.39446]
[1729700317924,0.7459,2537.2,2536.8,0.39448]
[1729700318633,0.7459,2537.2,2536.3,1.7631]
[1729700318634,4.28263171,2537.1,2536.3,1.7631]
[1729700318934,4.28263171,2537.1,2536.5,3.79]
[1729700319118,4.28263171,2537.1,2536.8,0.39448]
[1729700319119,0.39448,2536.9,2536.8,0.39448]
[1729700319321,4.28263171,2537.1,2536.5,44.59]
[1729700319525,0.39449,2536.8,2536.7,0.39449]
[1729700319731,0.3945,2536.8,2536.7,0.39449]
[1729700320230,0.39452,2536.7,2536.6,0.39451]
[1729700320426,4.28263171,2537.1,2536.5,44.59]
[1729700320630,0.7459,2537.2,2536.6,0.39451]
[1729700320631,0.39452,2536.7,2536.6,0.39451]
[1729700324233,0.39452,2536.6,2536.5,3.79]
[1729700324534,0.39456,2536.4,2536.3,0.39455]
[1729700324729,1.13325,2536.5,2536.4,0.39455]
[1729700326933,1.13325,2536.5,2536.3,3.08]
[1729700326934,0.39455,2536.4,2536.3,3.08]
[1729700327236,0.7387,2536.5,2536.2,0.39457]
[1729700327237,0.39458,2536.3,2536.2,0.39457]
[1729700327434,1.16238,2536.3,2536.2,0.39457]
[1729700327732,0.7678,2536.3,2536.2,0.39457]
[1729700327930,1.16237,2536.3,2536.2,0.39457]
[1729700328533,0.7678,2536.3,2536.2,3.47457]
[1729700328735,3.2078,2536.6,2536.2,3.47457]
[1729700328736,3.2078,2536.6,2536.2,8.00965]
[1729700329038,0.7801,2536.8,2536.7,0.3945]
[1729700329236,0.7801,2536.8,2536.7,3.4745]
[1729700329439,0.7678,2537.0,2536.7,3.08]
[1729700329643,0.7678,2537.0,2536.9,0.39447]
[1729700329842,1.16226,2537.0,2536.9,0.39447]
[1729700330735,0.39454,2536.6,2536.5,0.39454]
[1729700330935,0.39455,2536.5,2536.4,0.39454]
[1729700331137,0.98627,2536.7,2536.3,0.39455]
[1729700331138,0.39456,2536.4,2536.3,0.39455]
[1729700331343,1.13106,2536.4,2536.3,0.39455]
[1729700331641,0.7365,2536.4,2536.3,0.39455]
[1729700331944,0.39453,2536.6,2536.5,0.39454]
[1729700332243,0.39453,2536.6,2536.5,3.47454]
[1729700335539,0.7365,2536.8,2536.5,3.08]
[1729700335746,1.13101,2536.8,2536.7,0.3945]
[1729700335940,0.39452,2536.6,2536.5,0.39453]
[1729700338943,0.39455,2536.5,2536.4,0.39454]
[1729700339243,0.39458,2536.3,2536.2,0.39457]
[1729700340139,4.81549,2536.4,2536.0,40.8]
[1729700340341,0.7716,2536.2,2535.9,3.2078]
[1729700340643,0.7716,2536.2,2535.6,3.2078]
[1729700340644,0.39466,2535.7,2535.6,3.2078]
[1729700340942,0.39466,2535.7,2535.6,40.8]
[1729700341338,0.39466,2535.7,2535.6,41.19468]
[1729700341644,0.7491,2535.8,2535.2,7.27464]
[1729700341949,0.7441,2535.6,2535.5,0.39469]
[1729700342136,0.7441,2535.6,2535.5,41.19469]
[1729700342544,0.7441,2535.6,2535.5,44.27469]
[1729700342733,0.7441,2535.6,2535.2,3.08]
[1729700343043,0.7441,2535.6,2534.9,3.2078]
[1729700343044,0.39477,2535.0,2534.9,3.2078]
[1729700343246,0.39477,2535.0,2534.9,44.0078]
[1729700343740,14.59062527,2535.0,2534.4,3.2078]
[1729700343956,3.2078,2534.6,2534.1,3.08]
[1729700344143,0.39488,2534.3,2534.2,40.8]
[1729700344940,11.31134486,2534.3,2533.7,3.08]
[1729700345145,11.31134486,2534.3,2533.6,3.2078]
[1729700345146,7.76062486,2534.3,2534.1,0.3949]
[1729700345343,0.39489,2534.2,2534.0,0.39491]
[1729700345547,0.39493,2534.0,2533.8,0.39495]
[1729700345748,0.39492,2534.1,2534.0,0.39492]
[1729700346137,0.7716,2534.2,2533.6,3.2078]
[1729700346343,0.7716,2534.2,2534.1,0.39491]
[1729700346758,1.16649,2534.2,2534.1,0.39491]
[1729700347146,0.7716,2534.2,2534.1,0.39491]
[1729700347444,0.7716,2534.2,2534.0,40.8]
[1729700347445,3.2078,2534.3,2534.2,0.39489]
[1729700347744,3.2078,2534.3,2534.1,0.3949]
[1729700347745,3.60268,2534.3,2534.1,0.3949]
[1729700348542,3.60268,2534.3,2534.1,0.39491]
[1729700348754,0.39489,2534.2,2534.1,0.39491]
[1729700348952,3.2078,2534.3,2534.0,40.8]
[1729700349150,3.2078,2534.3,2534.2,0.39489]
[1729700349544,0.7713,2534.5,2534.4,0.39486]
[1729700350146,0.98688,2535.2,2534.1,3.79]
[1729700350147,0.39482,2534.7,2534.5,0.39485]
[1729700350354,0.39481,2534.8,2534.6,0.39483]
[1729700350649,4.78349145,2534.8,2534.6,0.39483]
[1729700351156,0.39482,2534.7,2534.4,0.39485]
[1729700351458,0.39482,2534.7,2534.5,0.39484]
[1729700352650,4.38868145,2534.8,2534.2,0.98724]
[1729700352651,4.78348145,2534.8,2534.2,0.98724]
[1729700352848,4.78348145,2534.8,2534.6,0.39482]
[1729700353355,0.3948,2534.8,2534.6,0.39482]
[1729700353651,3.60259,2534.9,2534.7,0.39481]
[1729700353949,3.60259,2534.9,2534.8,0.3948]
[1729700353950,3.2078,2534.9,2534.8,0.3948]
[1729700354354,0.7672,2535.0,2534.5,0.9871]
[1729700354656,0.7672,2535.0,2534.9,0.39478]
[1729700356757,3.2078,2535.2,2535.1,0.39475]
[1729700357147,3.2078,2535.2,2535.1,4.33955]
[1729700357352,3.2078,2535.5,2535.4,0.39471]
[1729700357853,3.2078,2535.8,2535.4,3.944]
[1729700358051,3.2078,2535.8,2535.7,0.39466]
[1729700358963,3.2078,2535.8,2535.2,3.2078]
[1729700359162,0.39467,2535.7,2535.6,0.39467]
[1729700359361,3.2078,2535.8,2535.7,0.39466]
[1729700359662,3.2078,2536.2,2535.7,3.79]
[1729700359856,3.2078,2536.2,2536.1,0.3946]